{"text_format":"1","workbook":"xlsx","n_sheets":11,"sheets":["基礎入力画面","入力画面","入力画面　技術資格者名簿 ","入札参加資格取得申請書","申請概要（その１）","申請概要（その２）","技術者総括表","期限切れ警告","マスタ","マクロ有効化案内","資格者集計ワーク"],"not_rendered":{"charts":0,"images":1,"macros":1,"external_links":0,"defined_names":143,"comments":5,"pivot_tables":0},"unopened":[],"bounds":{"document_bytes":16777216,"sheet_cells":100000,"rows_first":2000,"rows_last":500,"rows_between":2000,"halvings":0,"cell_chars":16384,"cell_head_chars":4096},"cells_cut":0,"cells_raw":0,"read":"whole","date_system":"1900"}

{"sheet":"基礎入力画面","index":0,"n_rows":61,"n_cols":52,"rows_kept":61,"cut":false,"hidden":true,"merged":[[55,4,55,28],[57,4,57,28],[58,4,58,28],[60,2,62,2],[60,15,62,19],[61,4,61,13],[61,20,61,29],[53,4,53,28],[41,1,61,1],[42,2,44,2],[43,4,43,6],[43,8,43,11],[43,13,43,33],[45,4,45,12],[45,16,45,24],[46,4,46,12],[46,16,46,24],[49,2,51,2],[49,8,49,16],[49,17,49,46],[50,4,50,7],[50,8,50,16],[50,17,50,46],[33,2,34,2],[33,4,34,13],[33,15,34,19],[33,20,34,29],[33,30,34,43],[39,4,39,8],[22,4,22,28],[24,4,24,28],[26,4,26,28],[27,4,27,28],[29,15,31,19],[30,4,30,13],[30,20,30,29],[36,4,36,46],[0,1,0,47],[4,4,4,11],[6,2,8,2],[7,4,7,6],[7,8,7,11],[14,16,14,24],[10,1,31,1],[10,2,12,2],[11,4,11,6],[11,8,11,11],[14,4,14,12],[29,2,31,2],[18,2,20,2],[15,4,15,12],[15,16,15,24],[18,8,18,16],[18,17,18,46],[19,4,19,7],[19,8,19,16],[19,17,19,46]]}
[null,"競争入札参加資格審査申請（水道施設工事） 基礎入力画面",null,null,null,null,null,null,null,null,null,null,null,null,null,null,null,null,null,null,null,null,null,null,null,null,null,null,null,null,null,null,null,null,null,null,null,null,null,null,null,null,null,null,null,null,null,null,null,null,null,"入力チェック"]
[]
[]
[]
[null,null,"申請区分"]
[]
[null,null,"業者番号"]
[null,null,null,null,"A",null,null,"-",null,null,null,null,null,null,null,null,null,null,null,null,null,null,null,null,null,null,null,null,null,null,null,null,null,null,null,null,null,null,null,null,null,null,null,null,null,null,null,null,null,false]
[]
[]
[null,"本店","郵便番号"]
[null,null,null,null,null,null,null,"-"]
[]
[]
[null,null,null,null,"都道府県コード",null,null,null,null,null,null,null,null,null,null,null,"市町村コード"]
[null,null,"住所コード"]
[]
[]
[null,null,"所在地",null,"都道府県名",null,null,null,"市町村名",null,null,null,null,null,null,null,null,"町名以下"]
[]
[]
[]
[null,null,"(フリガナ)"]
[]
[null,null,"商号名称"]
[]
[null,null,"(フリガナ)"]
[null,null,"代表者名"]
[]
[null,null,"電話番号",null,null,null,null,null,null,null,null,null,null,null,null,"FAX番号"]
[]
[]
[]
[null,null,"緊急連絡先\n（携帯電話）",null,null,null,null,null,null,null,null,null,null,null,null,"緊急連絡先氏名",null,null,null,null,null,null,null,null,null,null,null,null,null,null,"※緊急連絡先、緊急連絡先氏名は、本店所在地が那覇市内業者のみ入力"]
[]
[]
[null,null,"メールアドレス"]
[]
[]
[null,null,"支店有無"]
[]
[null,"支店登録",null,null,"※沖縄県内の業者で那覇市内に支店がある場合、又は、沖縄県外の業者で沖縄県内に支店がある場合、入力"]
[null,null,"郵便番号"]
[null,null,null,null,null,null,null,"-",null,null,null,null,null,"※市内業者の入力不可"]
[]
[null,null,null,null,"都道府県コード",null,null,null,null,null,null,null,null,null,null,null,"市町村コード"]
[null,null,"住所コード"]
[]
[]
[null,null,"所在地",null,"都道府県名",null,null,null,"市町村名",null,null,null,null,null,null,null,null,"町名以下"]
[]
[]
[]
[null,null,"(フリガナ)"]
[]
[null,null,"支店・営業所名"]
[]
[null,null,"（フリガナ）"]
[null,null,"支店長・\n所長"]
[]
[null,null,"電話番号",null,null,null,null,null,null,null,null,null,null,null,null,"FAX番号"]

{"sheet":"入力画面","index":1,"n_rows":64,"n_cols":8,"rows_kept":64,"cut":false,"hidden":true,"merged":[[32,4,33,4],[30,0,31,0],[30,1,31,1],[30,2,31,2],[30,3,31,3],[30,4,31,4],[32,0,33,0],[32,1,33,1],[32,2,33,2],[32,3,33,3],[28,4,29,4],[26,0,27,0],[26,1,27,1],[26,2,27,2],[26,3,27,3],[26,4,27,4],[28,0,29,0],[28,1,29,1],[28,2,29,2],[28,3,29,3],[24,4,25,4],[17,0,17,5],[18,0,18,5],[20,0,23,0],[20,1,23,1],[20,2,23,2],[20,3,22,3],[20,4,23,4],[24,0,25,0],[24,1,25,1],[24,2,25,2],[24,3,25,3],[16,0,16,5],[0,0,0,6],[13,0,14,6],[15,0,15,5],[10,1,11,3]]}
["入力画面",null,null,null,null,null,null,"入力チェック"]
[]
[]
[]
[]
[]
["給水装置工事事業者"]
["指定番号",null,"号"]
["有効期限（期間）"]
[]
[null,"※別紙お知らせ【指定給水装置工事事業者のみなさまへ】を確認して、有効期限(期間）を入力してください。"]
[]
[]
["業種別データ"]
[]
["○許 可 区分 ： 該当する許可区分をプルダウンより選択。"]
["○許可年月日 ： 建設業許可証明書を参照し、許可年月日（許可開始年月日）を入力。"]
["○完成工事高 ： 経営規模等評価結果通知書・総合評定値通知書の完成工事高（年平均）の数値を入力。"]
["○総 合 評点 ： 経営規模等評価結果通知書・総合評定値通知書の総合評点（Ｐ）を入力。"]
[]
["業種","許可区分\n01：特定\n02：一般","許可年月日","完成工事高　　　　　　　　　　　　　　　　　　　　　　\n（年平均）　　　　　　　　　　　　　　　　　　　　　　　　　　　　　　　　　　　　　　　　　　　　　　　　　　　　　　　　　　　　　　　　　　　　　　　　　　　　　　　　　　　　　　　　　　　　　　　　","総合評点\n（Ｐ）"]
[]
[]
[null,null,null,"（千円）"]
["01 水道施設工事業"]
[]
["02 管工事業"]
[]
["03 土木工事"]
[]
["04 ほ装工事"]
[]
["05 消防施設工事"]
[]
[]
["経審登録内容（「経営規模等評価結果通知書・総合評定値通知書」記載の下記事項を入力）"]
[]
["資本金",null,"（千円）"]
["自己資本",null,"（千円）"]
["営業年数",null,"年"]
["審査基準日"]
["那覇市内での営業年数",null,"年"]
[]
["保険等登録内容"]
["建退共"]
["建災防"]
["労災"]
["雇用保険"]
["健保・厚生"]
[]
["税登録内容"]
["那覇市課税"]
["消費税"]
[]
["IＳＯ等取得区分内訳"]
["ＩＳＯ9000Ｓ",null,"　ＩＳＯ14000Ｓ",null,"ｴｺｱｸｼｮﾝ21"]
[]
["ﾎﾞﾗﾝﾃｨｱ等区分内訳"]
["ﾎﾞﾗﾝﾃｨｱ協定を締結",null,"災害時における応援"]
[]
["雇用の規模及び障害者雇用人数"]
["雇用の規模",null,"人"]
["常用雇用障害者の数",null,"人"]
["障害者法定雇用義務の達成状況","09 義務無し"]

{"sheet":"入力画面　技術資格者名簿 ","index":2,"n_rows":206,"n_cols":22,"rows_kept":206,"cut":false,"hidden":true,"merged":[[4,5,4,6],[0,0,0,6],[4,2,4,3],[4,4,5,4],[4,1,5,1],[4,0,5,0],[2,5,2,6],[205,8,205,11],[205,13,205,18],[202,8,202,11],[202,13,202,18],[203,8,203,11],[203,13,203,18],[204,8,204,11],[204,13,204,18],[199,8,199,11],[199,13,199,18],[200,8,200,11],[200,13,200,18],[201,8,201,11],[201,13,201,18],[196,8,196,11],[196,13,196,18],[197,8,197,11],[197,13,197,18],[198,8,198,11],[198,13,198,18],[193,8,193,11],[193,13,193,18],[194,8,194,11],[194,13,194,18],[195,8,195,11],[195,13,195,18],[190,8,190,11],[190,13,190,18],[191,8,191,11],[191,13,191,18],[192,8,192,11],[192,13,192,18],[187,8,187,11],[187,13,187,18],[188,8,188,11],[188,13,188,18],[189,8,189,11],[189,13,189,18],[184,8,184,11],[184,13,184,18],[185,8,185,11],[185,13,185,18],[186,8,186,11],[186,13,186,18],[181,8,181,11],[181,13,181,18],[182,8,182,11],[182,13,182,18],[183,8,183,11],[183,13,183,18],[178,8,178,11],[178,13,178,18],[179,8,179,11],[179,13,179,18],[180,8,180,11],[180,13,180,18],[175,8,175,11],[175,13,175,18],[176,8,176,11],[176,13,176,18],[177,8,177,11],[177,13,177,18],[172,8,172,11],[172,13,172,18],[173,8,173,11],[173,13,173,18],[174,8,174,11],[174,13,174,18],[169,8,169,11],[169,13,169,18],[170,8,170,11],[170,13,170,18],[171,8,171,11],[171,13,171,18],[166,8,166,11],[166,13,166,18],[167,8,167,11],[167,13,167,18],[168,8,168,11],[168,13,168,18],[163,8,163,11],[163,13,163,18],[164,8,164,11],[164,13,164,18],[165,8,165,11],[165,13,165,18],[160,8,160,11],[160,13,160,18],[161,8,161,11],[161,13,161,18],[162,8,162,11],[162,13,162,18],[157,8,157,11],[157,13,157,18],[158,8,158,11],[158,13,158,18],[159,8,159,11],[159,13,159,18],[154,8,154,11],[154,13,154,18],[155,8,155,11],[155,13,155,18],[156,8,156,11],[156,13,156,18],[151,8,151,11],[151,13,151,18],[152,8,152,11],[152,13,152,18],[153,8,153,11],[153,13,153,18],[148,8,148,11],[148,13,148,18],[149,8,149,11],[149,13,149,18],[150,8,150,11],[150,13,150,18],[145,8,145,11],[145,13,145,18],[146,8,146,11],[146,13,146,18],[147,8,147,11],[147,13,147,18],[142,8,142,11],[142,13,142,18],[143,8,143,11],[143,13,143,18],[144,8,144,11],[144,13,144,18],[139,8,139,11],[139,13,139,18],[140,8,140,11],[140,13,140,18],[141,8,141,11],[141,13,141,18],[136,8,136,11],[136,13,136,18],[137,8,137,11],[137,13,137,18],[138,8,138,11],[138,13,138,18],[133,8,133,11],[133,13,133,18],[134,8,134,11],[134,13,134,18],[135,8,135,11],[135,13,135,18],[130,8,130,11],[130,13,130,18],[131,8,131,11],[131,13,131,18],[132,8,132,11],[132,13,132,18],[127,8,127,11],[127,13,127,18],[128,8,128,11],[128,13,128,18],[129,8,129,11],[129,13,129,18],[124,8,124,11],[124,13,124,18],[125,8,125,11],[125,13,125,18],[126,8,126,11],[126,13,126,18],[121,8,121,11],[121,13,121,18],[122,8,122,11],[122,13,122,18],[123,8,123,11],[123,13,123,18],[118,8,118,11],[118,13,118,18],[119,8,119,11],[119,13,119,18],[120,8,120,11],[120,13,120,18],[115,8,115,11],[115,13,115,18],[116,8,116,11],[116,13,116,18],[117,8,117,11],[117,13,117,18],[112,8,112,11],[112,13,112,18],[113,8,113,11],[113,13,113,18],[114,8,114,11],[114,13,114,18],[109,8,109,11],[109,13,109,18],[110,8,110,11],[110,13,110,18],[111,8,111,11],[111,13,111,18],[106,8,106,11],[106,13,106,18],[107,8,107,11],[107,13,107,18],[108,8,108,11],[108,13,108,18],[103,8,103,11],[103,13,103,18],[104,8,104,11],[104,13,104,18],[105,8,105,11],[105,13,105,18],[100,8,100,11],[100,13,100,18],[101,8,101,11],[101,13,101,18],[102,8,102,11],[102,13,102,18],[97,8,97,11],[97,13,97,18],[98,8,98,11],[98,13,98,18],[99,8,99,11],[99,13,99,18],[94,8,94,11],[94,13,94,18],[95,8,95,11],[95,13,95,18],[96,8,96,11],[96,13,96,18],[91,8,91,11],[91,13,91,18],[92,8,92,11],[92,13,92,18],[93,8,93,11],[93,13,93,18],[88,8,88,11],[88,13,88,18],[89,8,89,11],[89,13,89,18],[90,8,90,11],[90,13,90,18],[85,8,85,11],[85,13,85,18],[86,8,86,11],[86,13,86,18],[87,8,87,11],[87,13,87,18],[82,8,82,11],[82,13,82,18],[83,8,83,11],[83,13,83,18],[84,8,84,11],[84,13,84,18],[79,8,79,11],[79,13,79,18],[80,8,80,11],[80,13,80,18],[81,8,81,11],[81,13,81,18],[76,8,76,11],[76,13,76,18],[77,8,77,11],[77,13,77,18],[78,8,78,11],[78,13,78,18],[73,8,73,11],[73,13,73,18],[74,8,74,11],[74,13,74,18],[75,8,75,11],[75,13,75,18],[70,8,70,11],[70,13,70,18],[71,8,71,11],[71,13,71,18],[72,8,72,11],[72,13,72,18],[67,8,67,11],[67,13,67,18],[68,8,68,11],[68,13,68,18],[69,8,69,11],[69,13,69,18],[64,8,64,11],[64,13,64,18],[65,8,65,11],[65,13,65,18],[66,8,66,11],[66,13,66,18],[61,8,61,11],[61,13,61,18],[62,8,62,11],[62,13,62,18],[63,8,63,11],[63,13,63,18],[58,8,58,11],[58,13,58,18],[59,8,59,11],[59,13,59,18],[60,8,60,11],[60,13,60,18],[55,8,55,11],[55,13,55,18],[56,8,56,11],[56,13,56,18],[57,8,57,11],[57,13,57,18],[52,8,52,11],[52,13,52,18],[53,8,53,11],[53,13,53,18],[54,8,54,11],[54,13,54,18],[49,8,49,11],[49,13,49,18],[50,8,50,11],[50,13,50,18],[51,8,51,11],[51,13,51,18],[46,8,46,11],[46,13,46,18],[47,8,47,11],[47,13,47,18],[48,8,48,11],[48,13,48,18],[43,8,43,11],[43,13,43,18],[44,8,44,11],[44,13,44,18],[45,8,45,11],[45,13,45,18],[40,8,40,11],[40,13,40,18],[41,8,41,11],[41,13,41,18],[42,8,42,11],[42,13,42,18],[37,8,37,11],[37,13,37,18],[38,8,38,11],[38,13,38,18],[39,8,39,11],[39,13,39,18],[34,8,34,11],[34,13,34,18],[35,8,35,11],[35,13,35,18],[36,8,36,11],[36,13,36,18],[27,8,27,11],[27,13,27,18],[28,8,28,11],[28,13,28,18],[33,8,33,11],[33,13,33,18],[5,8,5,18],[7,8,7,11],[7,13,7,18],[18,8,18,11],[18,13,18,18],[19,8,19,11],[19,13,19,18],[21,8,21,11],[21,13,21,18],[20,8,20,11],[20,13,20,18],[13,8,13,11],[13,13,13,18],[16,8,16,11],[16,13,16,18],[17,8,17,11],[17,13,17,18],[25,8,25,11],[25,13,25,18],[26,8,26,11],[26,13,26,18],[24,8,24,11],[24,13,24,18],[22,8,22,11],[22,13,22,18],[23,8,23,11],[23,13,23,18]]}
[" 技　術　職　員　有　資　格　者　名　簿　入　力　画　面",null,null,null,null,null,null,null,null,null,null,null,null,null,null,null,null,null,null,null,null,"入力チェック"]
[]
[null,null,null,null,null,"2025-12-01",null," 現在"]
[]
["No.","氏名","土木施工管理技士",null,"\n給水装置工事\n主任技術者","配水管技能者"]
[null,null,"１  級","２  級\n（土木に限る）",null,"一般継手","耐震継手",null,"基礎年金番号",null,null,null,null,null,null,null,null,null,null,"監理技術者資格者証所有の有無"]
[{"$f":"ROW() - 6","v":1}]
[{"$f":"ROW() - 6","v":2},null,null,null,null,null,null,null,0,null,null,null,"-",0]
[3]
[4]
[5]
[6]
[7]
[8,null,null,null,null,null,null,null,0,null,null,null,"-",0]
[9]
[10]
[11,null,null,null,null,null,null,null,0,null,null,null,"-",0]
[12,null,null,null,null,null,null,null,0,null,null,null,"-",0]
[13,null,null,null,null,null,null,null,0,null,null,null,"-",0]
[14,null,null,null,null,null,null,null,0,null,null,null,"-",0]
[15,null,null,null,null,null,null,null,0,null,null,null,"-",0]
[16,null,null,null,null,null,null,null,0,null,null,null,"-",0]
[17,null,null,null,null,null,null,null,0,null,null,null,"-",0]
[18,null,null,null,null,null,null,null,0,null,null,null,"-",0]
[19,null,null,null,null,null,null,null,0,null,null,null,"-",0]
[20,null,null,null,null,null,null,null,0,null,null,null,"-",0]
[21,null,null,null,null,null,null,null,0,null,null,null,"-",0]
[22,null,null,null,null,null,null,null,0,null,null,null,"-",0]
[23,null,null,null,null,null,null,null,0,null,null,null,"-",0]
[24]
[25]
[26]
[27]
[28,null,null,null,null,null,null,null,0,null,null,null,"-",0]
[29,null,null,null,null,null,null,null,0,null,null,null,"-",0]
[30,null,null,null,null,null,null,null,0,null,null,null,"-",0]
[31,null,null,null,null,null,null,null,0,null,null,null,"-",0]
[32,null,null,null,null,null,null,null,0,null,null,null,"-",0]
[33,null,null,null,null,null,null,null,0,null,null,null,"-",0]
[34,null,null,null,null,null,null,null,0,null,null,null,"-",0]
[35,null,null,null,null,null,null,null,0,null,null,null,"-",0]
[36,null,null,null,null,null,null,null,0,null,null,null,"-",0]
[37,null,null,null,null,null,null,null,0,null,null,null,"-",0]
[38,null,null,null,null,null,null,null,0,null,null,null,"-",0]
[39,null,null,null,null,null,null,null,0,null,null,null,"-",0]
[40,null,null,null,null,null,null,null,0,null,null,null,"-",0]
[41,null,null,null,null,null,null,null,0,null,null,null,"-",0]
[42,null,null,null,null,null,null,null,0,null,null,null,"-",0]
[43,null,null,null,null,null,null,null,0,null,null,null,"-",0]
[44,null,null,null,null,null,null,null,0,null,null,null,"-",0]
[45,null,null,null,null,null,null,null,0,null,null,null,"-",0]
[46,null,null,null,null,null,null,null,0,null,null,null,"-",0]
[47,null,null,null,null,null,null,null,0,null,null,null,"-",0]
[48,null,null,null,null,null,null,null,0,null,null,null,"-",0]
[49,null,null,null,null,null,null,null,0,null,null,null,"-",0]
[50,null,null,null,null,null,null,null,0,null,null,null,"-",0]
[51,null,null,null,null,null,null,null,0,null,null,null,"-",0]
[52,null,null,null,null,null,null,null,0,null,null,null,"-",0]
[53,null,null,null,null,null,null,null,0,null,null,null,"-",0]
[54,null,null,null,null,null,null,null,0,null,null,null,"-",0]
[55,null,null,null,null,null,null,null,0,null,null,null,"-",0]
[56,null,null,null,null,null,null,null,0,null,null,null,"-",0]
[57,null,null,null,null,null,null,null,0,null,null,null,"-",0]
[58,null,null,null,null,null,null,null,0,null,null,null,"-",0]
[59,null,null,null,null,null,null,null,0,null,null,null,"-",0]
[60,null,null,null,null,null,null,null,0,null,null,null,"-",0]
[61,null,null,null,null,null,null,null,0,null,null,null,"-",0]
[62,null,null,null,null,null,null,null,0,null,null,null,"-",0]
[63,null,null,null,null,null,null,null,0,null,null,null,"-",0]
[64,null,null,null,null,null,null,null,0,null,null,null,"-",0]
[65,null,null,null,null,null,null,null,0,null,null,null,"-",0]
[{"$f":"ROW() - 6","v":66},null,null,null,null,null,null,null,0,null,null,null,"-",0]
[67,null,null,null,null,null,null,null,0,null,null,null,"-",0]
[68,null,null,null,null,null,null,null,0,null,null,null,"-",0]
[69,null,null,null,null,null,null,null,0,null,null,null,"-",0]
[70,null,null,null,null,null,null,null,0,null,null,null,"-",0]
[71,null,null,null,null,null,null,null,0,null,null,null,"-",0]
[72,null,null,null,null,null,null,null,0,null,null,null,"-",0]
[73,null,null,null,null,null,null,null,0,null,null,null,"-",0]
[74,null,null,null,null,null,null,null,0,null,null,null,"-",0]
[75,null,null,null,null,null,null,null,0,null,null,null,"-",0]
[76,null,null,null,null,null,null,null,0,null,null,null,"-",0]
[77,null,null,null,null,null,null,null,0,null,null,null,"-",0]
[78,null,null,null,null,null,null,null,0,null,null,null,"-",0]
[79,null,null,null,null,null,null,null,0,null,null,null,"-",0]
[80,null,null,null,null,null,null,null,0,null,null,null,"-",0]
[81,null,null,null,null,null,null,null,0,null,null,null,"-",0]
[82,null,null,null,null,null,null,null,0,null,null,null,"-",0]
[83,null,null,null,null,null,null,null,0,null,null,null,"-",0]
[84,null,null,null,null,null,null,null,0,null,null,null,"-",0]
[85,null,null,null,null,null,null,null,0,null,null,null,"-",0]
[86,null,null,null,null,null,null,null,0,null,null,null,"-",0]
[87,null,null,null,null,null,null,null,0,null,null,null,"-",0]
[88,null,null,null,null,null,null,null,0,null,null,null,"-",0]
[89,null,null,null,null,null,null,null,0,null,null,null,"-",0]
[90,null,null,null,null,null,null,null,0,null,null,null,"-",0]
[91,null,null,null,null,null,null,null,0,null,null,null,"-",0]
[92,null,null,null,null,null,null,null,0,null,null,null,"-",0]
[93,null,null,null,null,null,null,null,0,null,null,null,"-",0]
[94,null,null,null,null,null,null,null,0,null,null,null,"-",0]
[95,null,null,null,null,null,null,null,0,null,null,null,"-",0]
[96,null,null,null,null,null,null,null,0,null,null,null,"-",0]
[97,null,null,null,null,null,null,null,0,null,null,null,"-",0]
[98,null,null,null,null,null,null,null,0,null,null,null,"-",0]
[99,null,null,null,null,null,null,null,0,null,null,null,"-",0]
[100,null,null,null,null,null,null,null,0,null,null,null,"-",0]
[101,null,null,null,null,null,null,null,0,null,null,null,"-",0]
[102,null,null,null,null,null,null,null,0,null,null,null,"-",0]
[103,null,null,null,null,null,null,null,0,null,null,null,"-",0]
[104,null,null,null,null,null,null,null,0,null,null,null,"-",0]
[105,null,null,null,null,null,null,null,0,null,null,null,"-",0]
[106,null,null,null,null,null,null,null,0,null,null,null,"-",0]
[107,null,null,null,null,null,null,null,0,null,null,null,"-",0]
[108,null,null,null,null,null,null,null,0,null,null,null,"-",0]
[109,null,null,null,null,null,null,null,0,null,null,null,"-",0]
[110,null,null,null,null,null,null,null,0,null,null,null,"-",0]
[111,null,null,null,null,null,null,null,0,null,null,null,"-",0]
[112,null,null,null,null,null,null,null,0,null,null,null,"-",0]
[113,null,null,null,null,null,null,null,0,null,null,null,"-",0]
[114,null,null,null,null,null,null,null,0,null,null,null,"-",0]
[115,null,null,null,null,null,null,null,0,null,null,null,"-",0]
[116,null,null,null,null,null,null,null,0,null,null,null,"-",0]
[117,null,null,null,null,null,null,null,0,null,null,null,"-",0]
[118,null,null,null,null,null,null,null,0,null,null,null,"-",0]
[119,null,null,null,null,null,null,null,0,null,null,null,"-",0]
[120,null,null,null,null,null,null,null,0,null,null,null,"-",0]
[121,null,null,null,null,null,null,null,0,null,null,null,"-",0]
[122,null,null,null,null,null,null,null,0,null,null,null,"-",0]
[123,null,null,null,null,null,null,null,0,null,null,null,"-",0]
[124,null,null,null,null,null,null,null,0,null,null,null,"-",0]
[125,null,null,null,null,null,null,null,0,null,null,null,"-",0]
[126,null,null,null,null,null,null,null,0,null,null,null,"-",0]
[127,null,null,null,null,null,null,null,0,null,null,null,"-",0]
[128,null,null,null,null,null,null,null,0,null,null,null,"-",0]
[129,null,null,null,null,null,null,null,0,null,null,null,"-",0]
[{"$f":"ROW() - 6","v":130},null,null,null,null,null,null,null,0,null,null,null,"-",0]
[131,null,null,null,null,null,null,null,0,null,null,null,"-",0]
[132,null,null,null,null,null,null,null,0,null,null,null,"-",0]
[133,null,null,null,null,null,null,null,0,null,null,null,"-",0]
[134,null,null,null,null,null,null,null,0,null,null,null,"-",0]
[135,null,null,null,null,null,null,null,0,null,null,null,"-",0]
[136,null,null,null,null,null,null,null,0,null,null,null,"-",0]
[137,null,null,null,null,null,null,null,0,null,null,null,"-",0]
[138,null,null,null,null,null,null,null,0,null,null,null,"-",0]
[139,null,null,null,null,null,null,null,0,null,null,null,"-",0]
[140,null,null,null,null,null,null,null,0,null,null,null,"-",0]
[141,null,null,null,null,null,null,null,0,null,null,null,"-",0]
[142,null,null,null,null,null,null,null,0,null,null,null,"-",0]
[143,null,null,null,null,null,null,null,0,null,null,null,"-",0]
[144,null,null,null,null,null,null,null,0,null,null,null,"-",0]
[145,null,null,null,null,null,null,null,0,null,null,null,"-",0]
[146,null,null,null,null,null,null,null,0,null,null,null,"-",0]
[147,null,null,null,null,null,null,null,0,null,null,null,"-",0]
[148,null,null,null,null,null,null,null,0,null,null,null,"-",0]
[149,null,null,null,null,null,null,null,0,null,null,null,"-",0]
[150,null,null,null,null,null,null,null,0,null,null,null,"-",0]
[151,null,null,null,null,null,null,null,0,null,null,null,"-",0]
[152,null,null,null,null,null,null,null,0,null,null,null,"-",0]
[153,null,null,null,null,null,null,null,0,null,null,null,"-",0]
[154,null,null,null,null,null,null,null,0,null,null,null,"-",0]
[155,null,null,null,null,null,null,null,0,null,null,null,"-",0]
[156,null,null,null,null,null,null,null,0,null,null,null,"-",0]
[157,null,null,null,null,null,null,null,0,null,null,null,"-",0]
[158,null,null,null,null,null,null,null,0,null,null,null,"-",0]
[159,null,null,null,null,null,null,null,0,null,null,null,"-",0]
[160,null,null,null,null,null,null,null,0,null,null,null,"-",0]
[161,null,null,null,null,null,null,null,0,null,null,null,"-",0]
[162,null,null,null,null,null,null,null,0,null,null,null,"-",0]
[163,null,null,null,null,null,null,null,0,null,null,null,"-",0]
[164,null,null,null,null,null,null,null,0,null,null,null,"-",0]
[165,null,null,null,null,null,null,null,0,null,null,null,"-",0]
[166,null,null,null,null,null,null,null,0,null,null,null,"-",0]
[167,null,null,null,null,null,null,null,0,null,null,null,"-",0]
[168,null,null,null,null,null,null,null,0,null,null,null,"-",0]
[169,null,null,null,null,null,null,null,0,null,null,null,"-",0]
[170,null,null,null,null,null,null,null,0,null,null,null,"-",0]
[171,null,null,null,null,null,null,null,0,null,null,null,"-",0]
[172,null,null,null,null,null,null,null,0,null,null,null,"-",0]
[173,null,null,null,null,null,null,null,0,null,null,null,"-",0]
[174,null,null,null,null,null,null,null,0,null,null,null,"-",0]
[175,null,null,null,null,null,null,null,0,null,null,null,"-",0]
[176,null,null,null,null,null,null,null,0,null,null,null,"-",0]
[177,null,null,null,null,null,null,null,0,null,null,null,"-",0]
[178,null,null,null,null,null,null,null,0,null,null,null,"-",0]
[179,null,null,null,null,null,null,null,0,null,null,null,"-",0]
[180,null,null,null,null,null,null,null,0,null,null,null,"-",0]
[181,null,null,null,null,null,null,null,0,null,null,null,"-",0]
[182,null,null,null,null,null,null,null,0,null,null,null,"-",0]
[183,null,null,null,null,null,null,null,0,null,null,null,"-",0]
[184,null,null,null,null,null,null,null,0,null,null,null,"-",0]
[185,null,null,null,null,null,null,null,0,null,null,null,"-",0]
[186,null,null,null,null,null,null,null,0,null,null,null,"-",0]
[187,null,null,null,null,null,null,null,0,null,null,null,"-",0]
[188,null,null,null,null,null,null,null,0,null,null,null,"-",0]
[189,null,null,null,null,null,null,null,0,null,null,null,"-",0]
[190,null,null,null,null,null,null,null,0,null,null,null,"-",0]
[191,null,null,null,null,null,null,null,0,null,null,null,"-",0]
[192,null,null,null,null,null,null,null,0,null,null,null,"-",0]
[193,null,null,null,null,null,null,null,0,null,null,null,"-",0]
[{"$f":"ROW() - 6","v":194},null,null,null,null,null,null,null,0,null,null,null,"-",0]
[195,null,null,null,null,null,null,null,0,null,null,null,"-",0]
[196,null,null,null,null,null,null,null,0,null,null,null,"-",0]
[197,null,null,null,null,null,null,null,0,null,null,null,"-",0]
[198,null,null,null,null,null,null,null,0,null,null,null,"-",0]
[199,null,null,null,null,null,null,null,0,null,null,null,"-",0]
[200,null,null,null,null,null,null,null,0,null,null,null,"-",0]

{"sheet":"入札参加資格取得申請書","index":3,"n_rows":22,"n_cols":23,"rows_kept":22,"cut":false,"hidden":true,"merged":[[29,47,29,56],[30,22,30,26],[14,7,14,24],[15,1,17,1],[15,7,15,24],[19,7,19,37],[21,7,21,17],[21,28,21,37],[12,7,12,34],[1,1,1,47],[9,2,9,4],[9,7,9,34],[11,7,11,34]]}
[]
[null,"入札参加資格取得申請書（水道施設工事）"]
[]
[]
[null,null,null,"那覇市上下水道事業管理者　　　",null,null,null,null,null,null,null,null,null,null,null,null,null,null,null,"宛"]
[]
[null,null,null,null,"那覇市上下水道局が実施する水道施設工事の競争入札に関し、その参加資格を得たいので関係書類を添えて申請します。"]
[null,null,null,null,"なお、この入札参加資格取得申請書及び添付書類のすべての記載事項は、事実と相違ないことを誓約します。"]
[]
[null,null,"所在地又は住所",null,null,null,null,{"$f":"IF(ISBLANK(I01_本店都道府県名), \"\", IF(I01_本店都道府県コード=\"47 沖縄県\", \"\", I01_本店都道府県名)) & IF(ISBLANK(I01_本店市町村名),\"\",I01_本店市町村名) & IF(ISBLANK(I01_本店所在地), \"\", I01_本店所在地)","v":""}]
[]
[null,null,"（フリガナ）",null,null,null,null,{"$f":"ASC(IF(ISBLANK(I01_本店商号カナ), \"\", I01_本店商号カナ))","v":""}]
[null,null,"商号又は名称",null,null,null,null,{"$f":"DBCS(IF(ISBLANK(I01_本店商号), \"\", I01_本店商号))","v":""}]
[]
[null,null,"（フリガナ）",null,null,null,null,{"$f":"ASC(IF(ISBLANK(I01_本店代表者カナ), \"\", I01_本店代表者カナ))","v":""}]
[null,null,"代表者氏名",null,null,null,null,{"$f":"DBCS(IF(ISBLANK(I01_本店代表者名), \"\", I01_本店代表者名))","v":""}]
[]
[]
[null,null,"本書提出者"]
[null,null,null,"部署名等"]
[]
[null,null,null,"担当者氏名",null,null,null,null,null,null,null,null,null,null,null,null,null,null,null,null,null,null,"電話番号"]

{"sheet":"申請概要（その１）","index":4,"n_rows":48,"n_cols":55,"rows_kept":48,"cut":false,"hidden":true,"merged":[[17,33,17,35],[18,0,19,0],[17,37,18,54],[22,38,23,54],[22,33,23,37],[3,32,4,55],[43,14,44,14],[40,14,41,14],[40,15,41,27],[40,28,41,29],[43,15,44,27],[43,28,44,29],[34,33,34,35],[34,36,34,39],[31,14,32,14],[31,15,32,27],[31,28,32,29],[31,0,32,0],[31,1,32,6],[31,7,32,9],[31,10,32,12],[44,46,44,49],[18,28,19,29],[24,1,24,6],[47,33,47,34],[47,35,47,39],[47,45,47,50],[40,33,41,37],[40,38,41,54],[38,33,39,39],[38,40,39,54],[35,33,36,35],[41,0,42,13],[47,42,47,43],[42,15,42,27],[42,28,42,29],[35,36,36,54],[44,36,45,44],[44,50,45,54],[33,0,39,0],[33,1,39,6],[33,7,39,9],[33,10,39,12],[33,14,39,14],[33,15,39,27],[33,28,39,29],[45,33,45,34],[44,33,44,34],[45,46,45,49],[30,1,30,6],[30,7,30,9],[30,10,30,12],[30,15,30,27],[30,28,30,29],[43,33,43,54],[27,1,27,6],[27,7,27,9],[27,10,27,12],[27,15,27,27],[27,28,27,29],[42,33,42,54],[27,35,27,39],[26,41,27,44],[26,45,27,50],[26,51,27,51],[26,52,27,53],[26,54,27,54],[24,7,24,9],[24,10,24,12],[24,15,24,27],[24,28,24,29],[32,32,33,35],[25,0,26,0],[25,1,26,6],[25,7,26,9],[25,10,26,12],[25,14,26,14],[25,15,26,27],[25,28,26,29],[25,35,25,39],[29,1,29,6],[29,7,29,9],[29,10,29,12],[29,15,29,27],[29,28,29,29],[29,38,29,54],[29,33,29,37],[23,7,23,9],[23,10,23,12],[23,15,23,27],[23,28,23,29],[20,33,21,37],[20,38,21,54],[21,1,21,6],[21,7,21,9],[21,10,21,12],[20,1,20,6],[20,7,20,9],[20,10,20,12],[20,15,20,27],[22,1,22,6],[22,7,22,9],[22,10,22,12],[22,15,22,27],[22,28,22,29],[21,15,21,27],[21,28,21,29],[20,28,20,29],[18,1,19,6],[18,7,19,9],[18,10,19,12],[18,14,19,14],[18,15,19,27],[10,33,10,35],[10,37,10,39],[27,33,27,34],[17,28,17,29],[17,1,17,6],[17,7,17,9],[17,10,17,12],[17,15,17,27],[14,0,15,28],[14,33,15,37],[14,38,15,54],[10,0,10,1],[10,2,10,3],[10,4,10,5],[10,6,10,7],[10,8,10,9],[10,10,10,22],[11,3,12,11],[23,1,23,6],[11,13,12,22],[0,32,1,33],[0,35,1,36],[0,37,1,37],[0,38,1,38],[0,39,1,39],[2,0,2,6],[6,32,6,55],[8,0,8,3],[8,5,8,12],[8,13,8,15],[8,17,8,22],[8,24,12,29],[8,32,9,35],[11,36,12,54],[12,33,12,35],[10,46,10,49],[10,50,10,54]]}
[null,null,null,null,null,null,null,null,null,null,null,null,null,null,null,null,null,null,null,null,null,null,null,null,null,null,null,null,null,null,null,null,{"$f":"IF(I01_業者番号不明フラグ=TRUE,\"\",IF(ISBLANK(I01_業者番号記号), \"\", DBCS(I01_業者番号記号)))","v":"Ａ"},null,null,{"$f":"IF(ISBLANK(I01_業者番号), \"\", MID(TEXT(VALUE(I01_業者番号),\"0000\"),1,1))","v":""},null,{"$f":"IF(ISBLANK(I01_業者番号), \"\", MID(TEXT(VALUE(I01_業者番号),\"0000\"),2,1))","v":""},{"$f":"IF(ISBLANK(I01_業者番号), \"\", MID(TEXT(VALUE(I01_業者番号),\"0000\"),3,1))","v":""},{"$f":"IF(ISBLANK(I01_業者番号), \"\", MID(TEXT(VALUE(I01_業者番号),\"0000\"),4,1))","v":""}]
[]
["那　覇　市　長　　　宛"]
[null,null,null,null,null,null,null,null,null,null,null,null,null,null,null,null,null,null,null,null,null,null,null,null,null,null,null,null,null,null,null,null,{"$f":"TEXT(申請年度01,\"ge\") & IF(申請区分=1,\"・\" & TEXT(申請年度02,\"e\"),\"\") & \"年度入札参加資格取得申請概要（その１）\"","v":"R8年度入札参加資格取得申請概要（その１）"}]
[]
[]
[null,null,null,null,null,null,null,null,null,null,null,null,null,null,null,null,null,null,null,null,null,null,null,null,null,null,null,null,null,null,null,null,"（水道施設工事）"]
[]
["（フリガナ）",null,null,null,null,null,null,null,null,null,null,null,null,"（フリガナ）",null,null,null,null,null,null,null,null,null,null,null,null,null,null,null,null,null,null,"本店情報"]
[]
["所在地",null,null,null,"都道府県",null,null,null,"市区町村",null,null,null,null,null,null,null,null,null,null,null,null,null,null,null,null,null,null,null,null,null,null,null,null,"郵便番号",null,null,null,{"$f":"ASC(IF(OR(ISBLANK(I01_本店郵便番号01), ISBLANK(I01_本店郵便番号02)), \"\", TEXT(I01_本店郵便番号01,\"000\") & \"-\" & TEXT(I01_本店郵便番号02,\"0000\")))","v":""},null,null,null,null,null,null,null,null,"所在地区分",null,null,null,{"$f":"IF(ISBLANK(I01_本店都道府県コード),\"\",IF(I01_本店都道府県コード<>\"47 沖縄県\",\"県外\",IF(ISBLANK(I01_本店市町村コード),\"\",IF(I01_本店市町村コード=\"201 那覇市\",\"市内\",\"市外\"))))","v":""}]
[null,null,null,null,null,null,null,null,null,null,null,null,null,null,null,null,null,null,null,null,null,null,null,null,null,null,null,null,null,null,null,null,null,null,null,null,{"$f":"IF(ISBLANK(I01_本店都道府県名), \"\", IF(I01_本店都道府県コード=\"47 沖縄県\", \"\", I01_本店都道府県名)) & IF(ISBLANK(I01_本店市町村名),\"\",I01_本店市町村名) & IF(ISBLANK(I01_本店所在地), \"\", I01_本店所在地)","v":""}]
["本書持参者",null,null,null,null,null,null,null,null,null,null,null,"TEL",null,null,null,null,null,null,null,null,null,null,null,null,null,null,null,null,null,null,null,null,"所在地"]
[]
["  那覇市が発注する建設工事のうち、下の業種について入札参加資格を得たいので関係書類を添えて資格審査申請をいたします。",null,null,null,null,null,null,null,null,null,null,null,null,null,null,null,null,null,null,null,null,null,null,null,null,null,null,null,null,null,null,null,null,"（商号フリガナ）",null,null,null,null,{"$f":"ASC(IF(ISBLANK(I01_本店商号カナ), \"\", I01_本店商号カナ))","v":""}]
[]
["※ ●印が登録を希望する業種です。(ﾌﾟﾙﾀﾞｳﾝより選択）",null,null,null,null,null,null,null,null,null,null,null,null,null,"※ 提出書類は左側の□にﾁｪｯｸを入れてください。",null,null,null,null,null,null,null,null,null,null,null,null,null,null,null,null,null,null,"（法人形態は省略する。例「（株）那覇土木」だと、「ナハドボク」と記載する。）"]
[null,null,null,null,null,null,null,null,null,null,null,null,null,null,null,null,null,null,null,null,null,null,null,null,null,null,null,null,null,null,null,null,null,null,null,null,null,{"$f":"DBCS(IF(ISBLANK(I01_本店商号), \"\", I01_本店商号))","v":""}]
["○","03　大工",null,null,null,null,null,"○",null,null,"17　塗装",null,null,null,null,"建設業許可証明書",null,null,null,null,null,null,null,null,null,null,null,null,"□",null,null,null,null,"商　号　："]
[]
[null,null,null,null,null,null,null,null,null,null,null,null,null,null,null,null,null,null,null,null,null,null,null,null,null,null,null,null,null,null,null,null,null,"（代表者ﾌﾘｶﾞﾅ）",null,null,null,null,{"$f":"ASC(IF(ISBLANK(I01_本店代表者カナ), \"\", I01_本店代表者カナ))","v":""}]
["○","05　とび・土工",null,null,null,null,null,"○",null,null,"19　内装仕上",null,null,null,null,"技術職員有資格者名簿",null,null,null,null,null,null,null,null,null,null,null,null,"□"]
["○","06　石",null,null,null,null,null,"○",null,null,"20　機械器具設置",null,null,null,null,"工事経歴書",null,null,null,null,null,null,null,null,null,null,null,null,"□",null,null,null,null,"代 表 者",null,null,null,null,{"$f":"DBCS(IF(ISBLANK(I01_本店代表者名), \"\", I01_本店代表者名))","v":""}]
["○","07  屋根",null,null,null,null,null,"○",null,null,"21　熱絶縁",null,null,null,null,"登記簿謄本 （履歴事項全部証明書）                                                                                                                                                        （法人のみ）",null,null,null,null,null,null,null,null,null,null,null,null,"□"]
["○","08　電気",null,null,null,null,null,"○",null,null,"22　電気通信",null,null,null,null,"身分証明書・登記されていないことの証明書\n（個人事業者のみ）",null,null,null,null,null,null,null,null,null,null,null,null,"□"]
["○","09　管",null,null,null,null,null,"○",null,null,"23　造園",null,null,null,null,"本店等所在地位置図",null,null,null,null,null,null,null,null,null,null,null,null,"□",null,null,null,null,"TEL",null,{"$f":"ASC(IF(ISBLANK(I01_本店電話番号), \"\", I01_本店電話番号))","v":""}]
[null,null,null,null,null,null,null,null,null,null,null,null,null,null,null,null,null,null,null,null,null,null,null,null,null,null,null,null,null,null,null,null,null,null,null,null,null,null,null,null,null,"緊急連絡先\n（携帯電話）",null,null,null,{"$f":"ASC(IF(ISBLANK(I01_本店緊急連絡先), \"\", I01_本店緊急連絡先))","v":""},null,null,null,null,null,"（",{"$f":"IF(ISBLANK(I01_本店緊急連絡先氏名), \"\", I01_本店緊急連絡先氏名)","v":""},null,"）"]
["○","10　ﾀｲﾙ･ﾚﾝｶﾞ･ﾌﾞﾛｯｸ",null,null,null,null,null,"○",null,null,"24　さく井",null,null,null,null,"市税完納証明書（那覇市市民税課発行）",null,null,null,null,null,null,null,null,null,null,null,null,"□",null,null,null,null,"FAX",null,{"$f":"ASC(IF(ISBLANK(I01_本店FAX番号), \"\", I01_本店FAX番号))","v":""}]
[]
["○","05　とび・土工",null,null,null,null,null,"○",null,null,"19　内装仕上",null,null,null,null,"技術職員有資格者名簿",null,null,null,null,null,null,null,null,null,null,null,null,"□",null,null,null,null,"メールアドレス",null,null,null,null,{"$f":"ASC(LOWER(IF(ISBLANK(I01_本店メールアドレス), \"\", I01_本店メールアドレス)))","v":""}]
[]
["○","13　ほ装",null,null,null,null,null,"○",null,null,"27　消防施設",null,null,null,null,"労働保険証明書（県内事業者のみ）",null,null,null,null,null,null,null,null,null,null,null,null,"□"]
[null,null,null,null,null,null,null,null,null,null,null,null,null,null,null,null,null,null,null,null,null,null,null,null,null,null,null,null,null,null,null,null,"支店情報"]
["○","14　しゅんせつ",null,null,null,null,null,"○",null,null,"28　清掃施設",null,null,null,null,"健康保険・厚生年金（加入・納入）証明書\n（県内事業者のみ）",null,null,null,null,null,null,null,null,null,null,null,null,"□"]
[null,null,null,null,null,null,null,null,null,null,null,null,null,null,null,null,null,null,null,null,null,null,null,null,null,null,null,null,null,null,null,null,null,"郵便番号",null,null,{"$f":"ASC(IF(OR(ISBLANK(I01_支店郵便番号01), ISBLANK(I01_支店郵便番号02)), \"\", TEXT(I01_支店郵便番号01,\"000\") & \"-\" & TEXT(I01_支店郵便番号02,\"0000\")))","v":""}]
[null,null,null,null,null,null,null,null,null,null,null,null,null,null,null,null,null,null,null,null,null,null,null,null,null,null,null,null,null,null,null,null,null,"所在地",null,null,{"$f":"IF(ISBLANK(I01_支店都道府県名), \"\", IF(I01_支店都道府県コード=\"47 沖縄県\", \"\", I01_支店都道府県名)) & IF(ISBLANK(I01_支店市町村名),\"\",I01_支店市町村名) & IF(ISBLANK(I01_支店所在地), \"\", I01_支店所在地)","v":""}]
[]
[]
[null,null,null,null,null,null,null,null,null,null,null,null,null,null,null,null,null,null,null,null,null,null,null,null,null,null,null,null,null,null,null,null,null,"（支店・営業所フリガナ）",null,null,null,null,null,null,{"$f":"ASC(IF(ISBLANK(I01_支店商号カナ), \"\", I01_支店商号カナ))","v":""}]
[]
[null,null,null,null,null,null,null,null,null,null,null,null,null,null,null,"障害者雇用状況報告書",null,null,null,null,null,null,null,null,null,null,null,null,"□",null,null,null,null,"支店・営業所名",null,null,null,null,{"$f":"DBCS(IF(ISBLANK(I01_支店商号), \"\", I01_支店商号))","v":""}]
["※裏面の業種別データのコード欄には、上記各業種コードを記入してください。"]
[null,null,null,null,null,null,null,null,null,null,null,null,null,null,null,"納税証明書（法人税・消費税等）",null,null,null,null,null,null,null,null,null,null,null,null,"□",null,null,null,null,"（商号又は名称は省略し、支店・営業所名を記載する。例「（株）日本土木沖縄営業所」だと「沖縄営業所」と記載する。"]
[null,null,null,null,null,null,null,null,null,null,null,null,null,null,null,"82円切手（合否通知用）",null,null,null,null,null,null,null,null,null,null,null,null,"□"]
[null,null,null,null,null,null,null,null,null,null,null,null,null,null,null,null,null,null,null,null,null,null,null,null,null,null,null,null,null,null,null,null,null,"支店長",null,null,{"$f":"DBCS(IF(ISBLANK(I01_支店代表者名), \"\", I01_支店代表者名))","v":""},null,null,null,null,null,null,null,null,null,"（支店長フリガナ）",null,null,null,{"$f":"ASC(IF(ISBLANK(I01_支店代表者カナ), \"\", I01_支店代表者カナ))","v":""}]
[null,null,null,null,null,null,null,null,null,null,null,null,null,null,null,null,null,null,null,null,null,null,null,null,null,null,null,null,null,null,null,null,null,"所  長",null,null,null,null,null,null,null,null,null,null,null,null,"（所  長フリガナ）"]
[]
[null,null,null,null,null,null,null,null,null,null,null,null,null,null,null,null,null,null,null,null,null,null,null,null,null,null,null,null,null,null,null,null,null,"TEL",null,{"$f":"ASC(IF(ISBLANK(I01_支店電話番号), \"\", I01_支店電話番号))","v":""},null,null,null,null,null,null,"FAX",null,null,{"$f":"ASC(IF(ISBLANK(I01_支店FAX番号), \"\", I01_支店FAX番号))","v":""}]

{"sheet":"申請概要（その２）","index":5,"n_rows":50,"n_cols":45,"rows_kept":50,"cut":false,"hidden":true,"merged":[[48,1,49,9],[46,10,46,18],[40,34,40,38],[4,1,5,46],[12,1,14,14],[15,1,15,14],[15,21,15,29],[15,40,15,46],[16,40,16,46],[15,15,15,20],[16,15,16,20],[17,15,17,20],[15,30,15,39],[16,30,16,39],[17,30,17,39],[8,1,10,9],[8,10,10,13],[12,40,14,46],[17,1,17,14],[17,21,17,29],[17,40,17,46],[9,23,9,24],[9,16,9,22],[8,25,10,31],[37,38,37,43],[43,41,43,45],[36,1,38,9],[39,1,41,9],[42,1,44,9],[32,1,33,9],[49,34,49,46],[30,1,30,21],[29,1,29,21],[31,1,31,21],[29,22,29,31],[30,22,30,31],[31,22,31,31],[32,22,32,31],[29,32,29,33],[30,32,30,33],[31,32,31,33],[32,32,32,33],[43,34,43,40],[43,22,43,27],[43,10,43,15],[33,22,33,31],[33,32,33,33],[34,22,34,31],[43,28,43,32],[40,19,40,23],[25,2,26,14],[24,22,24,36],[18,15,18,20],[19,15,19,20],[40,27,40,32],[40,10,40,17],[37,10,37,13],[37,17,37,20],[37,24,37,26],[37,30,37,34],[28,1,28,21],[28,22,28,33],[34,32,34,33],[48,10,48,21],[49,10,49,19],[48,22,48,33],[49,22,49,31],[48,34,48,46],[12,21,14,29],[19,40,19,46],[9,33,9,45],[46,19,46,23],[46,28,46,38],[46,39,46,43],[19,1,19,14],[25,19,26,21],[19,21,19,29],[18,30,18,39],[19,30,19,39],[37,44,37,45],[37,14,37,15],[37,21,37,22],[37,27,37,28],[37,35,37,36],[43,16,43,20],[45,1,47,9],[18,1,18,14],[0,1,2,4],[0,7,2,9],[0,10,2,12],[0,13,2,15],[0,16,2,18],[32,10,32,21],[33,10,33,21],[34,10,34,21],[9,14,9,15],[25,15,26,18],[16,1,16,14],[16,21,16,29],[1,20,2,23],[1,24,2,46],[6,1,6,46],[12,15,14,20],[12,30,12,39],[13,30,13,39],[14,30,14,39],[22,8,22,15],[22,26,22,33],[24,8,24,11],[18,21,18,29],[18,40,18,46]]}
[null,{"$f":"IF(I01_業者番号不明フラグ=TRUE,\"\",IF(ISBLANK(I01_業者番号記号), \"\", DBCS(I01_業者番号記号)))","v":"Ａ"},null,null,null,null,null,{"$f":"IF(ISBLANK(I01_業者番号), \"\", MID(TEXT(VALUE(I01_業者番号),\"0000\"),1,1))","v":""},null,null,{"$f":"IF(ISBLANK(I01_業者番号), \"\", MID(TEXT(VALUE(I01_業者番号),\"0000\"),2,1))","v":""},null,null,{"$f":"IF(ISBLANK(I01_業者番号), \"\", MID(TEXT(VALUE(I01_業者番号),\"0000\"),3,1))","v":""},null,null,{"$f":"IF(ISBLANK(I01_業者番号), \"\", MID(TEXT(VALUE(I01_業者番号),\"0000\"),4,1))","v":""}]
[null,null,null,null,null,null,null,null,null,null,null,null,null,null,null,null,null,null,null,null,"商号：",null,null,null,{"$f":"DBCS(IF(ISBLANK(I01_本店商号), \"\", I01_本店商号))","v":""}]
[]
[]
[null,{"$f":"TEXT(申請年度01,\"ge\") & IF(申請区分=1,\"・\" & TEXT(申請年度02,\"e\"),\"\") & \"年度入札参加資格取得申請概要（その２）\"","v":"R8年度入札参加資格取得申請概要（その２）"}]
[]
[null,"（水道施設工事）"]
[]
[null,"給水装置工事\n事業者",null,null,null,null,null,null,null,null,"番号",null,null,null,null,null,null,null,null,null,null,null,null,null,null,"有効期限\n（有効期間）"]
[null,null,null,null,null,null,null,null,null,null,null,null,null,null,"第",null,{"$f":"IF(ISBLANK(I02_給水装置事業者番号), \"\", I02_給水装置事業者番号)","v":""},null,null,null,null,null,null,"号",null,null,null,null,null,null,null,null,null,{"$f":"IF(ISBLANK(I02_給水装置事業者有効期限), \"\", I02_給水装置事業者有効期限)","v":""}]
[]
[]
[null,"業種",null,null,null,null,null,null,null,null,null,null,null,null,null,"許可区分",null,null,null,null,null,"許可年月日",null,null,null,null,null,null,null,null,"完成工事高",null,null,null,null,null,null,null,null,null,"総合評点　　　　　　　　　　　　　　　　　　　　　　　（P）"]
[null,null,null,null,null,null,null,null,null,null,null,null,null,null,null,null,null,null,null,null,null,null,null,null,null,null,null,null,null,null,"（年平均）"]
[null,null,null,null,null,null,null,null,null,null,null,null,null,null,null,null,null,null,null,null,null,null,null,null,null,null,null,null,null,null,"（千円）"]
[null,{"$f":"IF(ISBLANK(I02_業種01),\"\",MID(I02_業種01, 4, LEN(I02_業種01)))","v":"水道施設工事業"},null,null,null,null,null,null,null,null,null,null,null,null,null,{"$f":"IF(ISBLANK(I02_許可区分01),\"\",MID(I02_許可区分01, 4, LEN(I02_許可区分01)))","v":""},null,null,null,null,null,{"$f":"IF(ISBLANK(I02_許可日01), \"\", I02_許可日01)","v":""},null,null,null,null,null,null,null,null,{"$f":"IF(ISBLANK(I02_完成工事高01), \"\", I02_完成工事高01)","v":""},null,null,null,null,null,null,null,null,null,{"$f":"IF(ISBLANK(I02_総合評点01), \"\", I02_総合評点01)","v":""}]
[null,{"$f":"IF(ISBLANK(I02_業種02),\"\",MID(I02_業種02, 4, LEN(I02_業種02)))","v":"管工事業"},null,null,null,null,null,null,null,null,null,null,null,null,null,{"$f":"IF(ISBLANK(I02_許可区分02),\"\",MID(I02_許可区分02, 4, LEN(I02_許可区分02)))","v":""},null,null,null,null,null,{"$f":"IF(ISBLANK(I02_許可日02), \"\", I02_許可日02)","v":""},null,null,null,null,null,null,null,null,{"$f":"IF(ISBLANK(I02_完成工事高02), \"\", I02_完成工事高02)","v":""},null,null,null,null,null,null,null,null,null,{"$f":"IF(ISBLANK(I02_総合評点02), \"\", I02_総合評点02)","v":""}]
[null,{"$f":"IF(ISBLANK(I02_業種03),\"\",MID(I02_業種03, 4, LEN(I02_業種03)))","v":"土木工事"},null,null,null,null,null,null,null,null,null,null,null,null,null,{"$f":"IF(ISBLANK(I02_許可区分03),\"\",MID(I02_許可区分03, 4, LEN(I02_許可区分03)))","v":""},null,null,null,null,null,{"$f":"IF(ISBLANK(I02_許可日03), \"\", I02_許可日03)","v":""},null,null,null,null,null,null,null,null,{"$f":"IF(ISBLANK(I02_完成工事高03), \"\", I02_完成工事高03)","v":""},null,null,null,null,null,null,null,null,null,{"$f":"IF(ISBLANK(I02_総合評点03), \"\", I02_総合評点03)","v":""}]
[null,{"$f":"IF(ISBLANK(I02_業種04),\"\",MID(I02_業種04, 4, LEN(I02_業種04)))","v":"ほ装工事"},null,null,null,null,null,null,null,null,null,null,null,null,null,{"$f":"IF(ISBLANK(I02_許可区分04),\"\",MID(I02_許可区分04, 4, LEN(I02_許可区分04)))","v":""},null,null,null,null,null,{"$f":"IF(ISBLANK(I02_許可日04), \"\", I02_許可日04)","v":""},null,null,null,null,null,null,null,null,{"$f":"IF(ISBLANK(I02_完成工事高04), \"\", I02_完成工事高04)","v":""},null,null,null,null,null,null,null,null,null,{"$f":"IF(ISBLANK(I02_総合評点04), \"\", I02_総合評点04)","v":""}]
[null,{"$f":"IF(ISBLANK(I02_業種05),\"\",MID(I02_業種05, 4, LEN(I02_業種05)))","v":"消防施設工事"},null,null,null,null,null,null,null,null,null,null,null,null,null,{"$f":"IF(ISBLANK(I02_許可区分05),\"\",MID(I02_許可区分05, 4, LEN(I02_許可区分05)))","v":""},null,null,null,null,null,{"$f":"IF(ISBLANK(I02_許可日05), \"\", I02_許可日05)","v":""},null,null,null,null,null,null,null,null,{"$f":"IF(ISBLANK(I02_完成工事高05), \"\", I02_完成工事高05)","v":""},null,null,null,null,null,null,null,null,null,{"$f":"IF(ISBLANK(I02_総合評点05), \"\", I02_総合評点05)","v":""}]
[]
[null,"経審登録内容"]
[null,null,"資本金",null,null,null,null,null,{"$f":"IF(ISBLANK(I02_資本金), \"\", I02_資本金)","v":""},null,null,null,null,null,null,null,"（千円）",null,null,null,null,"自己資本",null,null,null,null,{"$f":"IF(ISBLANK(I02_自己資本), \"\", I02_自己資本)","v":""},null,null,null,null,null,null,null,"（千円）"]
[]
[null,null,"営業年数",null,null,null,null,null,{"$f":"IF(ISBLANK(I02_営業年数), \"\", I02_営業年数)","v":""},null,null,null,"年",null,null,null,"審査基準日",null,null,null,null,null,{"$f":"IF(ISBLANK(I02_審査基準日), \"\", I02_審査基準日)","v":""}]
[null,null,"（　那覇市内での営業年数",null,null,null,null,null,null,null,null,null,null,null,null,{"$f":"IF(ISBLANK(I02_市内営業年数), \"\", I02_市内営業年数)","v":""},null,null,null,"年　）"]
[null,null,null,null,null,null,null,null,null,null,null,null,null,null,null,null,null,null,null,null,null,null,"　※那覇市内で本店が現在営業している年数"]
[]
[null,"資　　　格",null,null,null,null,null,null,null,null,null,null,null,null,null,null,null,null,null,null,null,null,"技術資格者数"]
[null,"土木施工管理技士１級",null,null,null,null,null,null,null,null,null,null,null,null,null,null,null,null,null,null,null,null,0,null,null,null,null,null,null,null,null,null,"人"]
[null,"土木施工管理技士２級（土木に限る）",null,null,null,null,null,null,null,null,null,null,null,null,null,null,null,null,null,null,null,null,0,null,null,null,null,null,null,null,null,null,"人"]
[null,"給水装置工事主任技術者",null,null,null,null,null,null,null,null,null,null,null,null,null,null,null,null,null,null,null,null,0,null,null,null,null,null,null,null,null,null,"人"]
[null,"配水管技能者",null,null,null,null,null,null,null,null,"一般継手",null,null,null,null,null,null,null,null,null,null,null,0,null,null,null,null,null,null,null,null,null,"人"]
[null,null,null,null,null,null,null,null,null,null,"耐震継手",null,null,null,null,null,null,null,null,null,null,null,0,null,null,null,null,null,null,null,null,null,"人"]
[null,null,null,null,null,null,null,null,null,null,"その他",null,null,null,null,null,null,null,null,null,null,null,0,null,null,null,null,null,null,null,null,null,"人"]
[]
[null,"保険等登録内容"]
[null,null,null,null,null,null,null,null,null,null,"建退共",null,null,null,{"$f":"IF(ISBLANK(I02_建退共),\"\",MID(I02_建退共, 4, LEN(I02_建退共)))","v":""},null,null,"建災防",null,null,null,{"$f":"IF(ISBLANK(I02_建災防),\"\",MID(I02_建災防, 4, LEN(I02_建災防)))","v":""},null,null,"労災",null,null,{"$f":"IF(ISBLANK(I02_労災),\"\",MID(I02_労災, 4, LEN(I02_労災)))","v":""},null,null,"雇用保険",null,null,null,null,{"$f":"IF(ISBLANK(I02_雇用保険),\"\",MID(I02_雇用保険, 4, LEN(I02_雇用保険)))","v":""},null,null,"健保・厚生",null,null,null,null,null,{"$f":"IF(ISBLANK(I02_健保厚生),\"\",MID(I02_健保厚生, 4, LEN(I02_健保厚生)))","v":""}]
[]
[null,"税登録内容"]
[null,null,null,null,null,null,null,null,null,null,"那 覇 市 課 税",null,null,null,null,null,null,null,null,{"$f":"IF(ISBLANK(I02_市課税),\"\",MID(I02_市課税, 4, LEN(I02_市課税)))","v":""},null,null,null,null,null,null,null,"消  費  税",null,null,null,null,null,null,{"$f":"IF(ISBLANK(I02_消費税),\"\",MID(I02_消費税, 4, LEN(I02_消費税)))","v":""}]
[]
[null,"ＩＳＯ等取得\n区分内容"]
[null,null,null,null,null,null,null,null,null,null,"9000Ｓ",null,null,null,null,null,{"$f":"IF(ISBLANK(I02_ISO9000S),\"\",MID(I02_ISO9000S, 4, LEN(I02_ISO9000S)))","v":""},null,null,null,null,null,"14000Ｓ",null,null,null,null,null,{"$f":"IF(ISBLANK(I02_ISO14000S),\"\",MID(I02_ISO14000S, 4, LEN(I02_ISO14000S)))","v":""},null,null,null,null,null,"ｴｺｱｸｼｮﾝ21",null,null,null,null,null,null,{"$f":"IF(ISBLANK(I02_エコアクション),\"\",MID(I02_エコアクション, 4, LEN(I02_エコアクション)))","v":""}]
[]
[null,"ボランティア\n等区分内訳"]
[null,null,null,null,null,null,null,null,null,null,"ボランティア\n協定を締結",null,null,null,null,null,null,null,null,{"$f":"IF(ISBLANK(I02_ボランティア協定),\"\",MID(I02_ボランティア協定, 4, LEN(I02_ボランティア協定)))","v":""},null,null,null,null,null,null,null,null,"災害時における\n応援協定等を締結",null,null,null,null,null,null,null,null,null,null,{"$f":"IF(ISBLANK(I02_災害時応援),\"\",MID(I02_災害時応援, 4, LEN(I02_災害時応援)))","v":""}]
[]
[null,"雇用の規模及び\n障害者雇用人数",null,null,null,null,null,null,null,null,"雇用の規模",null,null,null,null,null,null,null,null,null,null,null,"常用雇用障害者の数",null,null,null,null,null,null,null,null,null,null,null,"障害者法定雇用義務の達成状況"]
[null,null,null,null,null,null,null,null,null,null,{"$f":"I02_雇用の規模","v":0},null,null,null,null,null,null,null,null,null,"人",null,{"$f":"I02_障害者雇用数","v":0},null,null,null,null,null,null,null,null,null,"人",null,{"$f":"IF(ISBLANK(I02_障害者雇用義務),\"\",MID(I02_障害者雇用義務, 4, LEN(I02_障害者雇用義務)) & IF(AND(障害者雇用義務従業員数 <= I02_雇用の規模,LEFT(I02_障害者雇用義務, 2)=\"09\"), CHAR(10) & \"（理由書必要）\",\"\"))","v":"義務無し"}]

{"sheet":"技術者総括表","index":6,"n_rows":29,"n_cols":7,"rows_kept":29,"cut":false,"hidden":true,"merged":[[8,0,8,1],[6,2,6,3],[6,4,7,4],[6,5,6,6],[0,4,0,6],[2,0,2,6]]}
[null,null,null,null,{"$f":"I03_入力日","v":"2025-12-01"}]
[]
["技　　　術　　　者　　　総　　　括　　　表"]
[]
[null,null,null,null,null,{"$f":"\"商号又は名称 \"&I01_本店商号","v":"商号又は名称 "}]
[]
[null,"          資 格 区 分","土木施工管理技士",null,"\n給水装置工事\n主任技術者","配水管技能者"]
["\n№","\n 技術者氏名","１  級","２  級\n（土木に限る）",null,"一般継手","耐震継手"]
["合　　計",null,{"$f":"COUNTIF($C$10,\"○\")","v":0},{"$f":"COUNTIF($D$10,\"○\")","v":0},{"$f":"COUNTIF($E$10,\"○\")","v":0},{"$f":"COUNTIF($F$10,\"○\")","v":0},{"$f":"COUNTIF($G$10,\"○\")","v":0}]
[{"$f":"ROW() - 9","v":1}]
[2]
[3]
[4]
[5]
[6]
[7]
[8]
[9]
[10]
[11]
[12]
[13]
[14]
[15]
[16]
[17]
[18]
[19]
[20]

{"sheet":"期限切れ警告","index":7,"n_rows":22,"n_cols":6,"rows_kept":22,"cut":false,"hidden":true,"merged":[[2,1,2,9],[5,1,11,9]]}
[]
[]
[null,"変更届の案内"]
[]
[]
[null,"　現在、建設業許可又は経営事項審査結果通知書の有効期限が、4月1日時点で切れます。\n　新しい許可書等通知書が届きましたら、速やかに変更届の提出をお願いします。"]
[]
[]
[]
[]
[]
[]
[]
[]
[]
[]
[]
[]
[]
[]
[null,null,null,null,null,"那覇市上下水道局　総務課　契約検査室"]
[null,null,null,null,null,"ＴＥＬ ０９８－９４１－７８０９"]

{"sheet":"マスタ","index":8,"n_rows":82,"n_cols":20,"rows_kept":82,"cut":false,"hidden":true,"merged":[]}
["各種設定",null,null,null,"都道府県マスタ","コード","都道府県名",null,"市町村マスタ","コード","市町村名",null,"工事業種マスタ","コード","名称",null,"資格区分マスタ","コード","資格名","資格区分"]
["設定項目","設定値","入力方法・備考",null,{"$f":"TEXT(F2,\"00 \") & G2","v":"01 北海道"},1,"北海道",null,{"$f":"TEXT(J2,\"00 \") & K2","v":"201 那覇市"},201,"那覇市",null,{"$f":"TEXT(N2,\"00 \") & O2","v":"01 土木"},1,"土木",null,{"$f":"TEXT(R2,\"000 \") & S2","v":"111 １級建設機械施工技士"},111,"１級建設機械施工技士","建設業法"]
["保護パスワード","7a8a","半角英数字で入力",null,{"$f":"TEXT(F3,\"00 \") & G3","v":"02 青森県"},2,"青森県",null,{"$f":"TEXT(J3,\"00 \") & K3","v":"205 宜野湾市"},205,"宜野湾市",null,{"$f":"TEXT(N3,\"00 \") & O3","v":"02 建築"},2,"建築",null,{"$f":"TEXT(R3,\"000 \") & S3","v":"212 ２級建設機械施工技士（第一種～第六種）"},212,"２級建設機械施工技士（第一種～第六種）"]
["入力項目背景色",null,"入力イベント発生時に利用",null,"03 岩手県",3,"岩手県",null,"207 石垣市",207,"石垣市",null,"03 大工",3,"大工",null,"113 １級土木施工管理技士",113,"１級土木施工管理技士"]
["入力不可項目背景色",null,"入力イベント発生時に利用",null,"04 宮城県",4,"宮城県",null,"208 浦添市",208,"浦添市",null,"04 左官",4,"左官",null,"214 ２級土木施工管理技士（土木）",214,"２級土木施工管理技士（土木）"]
["申請区分",2,"定期申請：1　　中間申請：2",null,"05 秋田県",5,"秋田県",null,"209 名護市",209,"名護市",null,"05 とび・土工",5,"とび・土工",null,"215 ２級土木施工管理技士（鋼構造物塗装）",215,"２級土木施工管理技士（鋼構造物塗装）"]
["申請年度１","2026-04-01","年度＋『４月１日で入力』",null,"06 山形県",6,"山形県",null,"210 糸満市",210,"糸満市",null,"06 石",6,"石",null,"216 ２級土木施工管理技士（薬液注入）",216,"２級土木施工管理技士（薬液注入）"]
["申請年度２",null,"年度＋『４月１日で入力』",null,"07 福島県",7,"福島県",null,"211 沖縄市",211,"沖縄市",null,"07 屋根",7,"屋根",null,"120 １級建築施工管理技士",120,"１級建築施工管理技士"]
["許可年月日有効開始日\n（県内業者用）","2020-10-01","設定値より前の日付はエラー扱い。\n設定値の日付は、エラーとなりません。",null,"08 茨城県",8,"茨城県",null,"212 豊見城市",212,"豊見城市",null,"08 電気",8,"電気",null,"221 ２級建築施工管理技士（建築）",221,"２級建築施工管理技士（建築）"]
["許可年月日有効開始日\n（県外業者用）","2020-07-01","設定値より前の日付はエラー扱い。\n設定値の日付は、エラーとなりません。",null,"09 栃木県",9,"栃木県",null,"213 うるま市",213,"うるま市",null,"09 管",9,"管",null,"222 ２級建築施工管理技士（躯体）",222,"２級建築施工管理技士（躯体）"]
["審査基準日有効開始日","2024-06-30","設定値より前の日付はエラー扱い\n設定値の日付は、エラーとなりません。",null,"10 群馬県",10,"群馬県",null,"214 宮古島市",214,"宮古島市",null,"10 タイル・レンガ・ブロック",10,"タイル・レンガ・ブロック",null,"223 ２級建築施工管理技士（仕上げ）",223,"２級建築施工管理技士（仕上げ）"]
["障害者雇用義務従業員数",40,"障害者雇用が義務となる従業員数\nこの値「以上」を義務有として扱います",null,"11 埼玉県",11,"埼玉県",null,"215 南城市",215,"南城市",null,"11 鋼構造物",11,"鋼構造物",null,"127 １級電気工事施工管理技士",127,"１級電気工事施工管理技士"]
[null,null,null,null,"12 千葉県",12,"千葉県",null,"301 国頭村",301,"国頭村",null,"12 鉄筋",12,"鉄筋",null,"228 ２級電気工事施工管理技士",228,"２級電気工事施工管理技士"]
[null,null,null,null,"13 東京都",13,"東京都",null,"302 大宜味村",302,"大宜味村",null,"13 ほ装",13,"ほ装",null,"129 １級管工事施工管理技士",129,"１級管工事施工管理技士"]
[null,null,null,null,"14 神奈川県",14,"神奈川県",null,"303 東村",303,"東村",null,"14 しゅんせつ",14,"しゅんせつ",null,"230 ２級管工事施工管理技士",230,"２級管工事施工管理技士"]
[null,null,null,null,"15 新潟県",15,"新潟県",null,"306 今帰仁村",306,"今帰仁村",null,"15 板金",15,"板金",null,"133 １級造園施工管理技士",133,"１級造園施工管理技士"]
[null,null,null,null,"16 富山県",16,"富山県",null,"308 本部町",308,"本部町",null,"16 ガラス",16,"ガラス",null,"234 ２級造園施工管理技士",234,"２級造園施工管理技士"]
[null,null,null,null,"17 石川県",17,"石川県",null,"311 恩納村",311,"恩納村",null,"17 塗装",17,"塗装",null,"137 一級建築士",137,"一級建築士","建築士法"]
[null,null,null,null,"18 福井県",18,"福井県",null,"313 宜野座村",313,"宜野座村",null,"18 防水",18,"防水",null,"238 ニ級建築士",238,"ニ級建築士"]
[null,null,null,null,"19 山梨県",19,"山梨県",null,"314 金武町",314,"金武町",null,"19 内装仕上",19,"内装仕上",null,"239 木造建築士",239,"木造建築士"]
[null,null,null,null,"20 長野県",20,"長野県",null,"315 伊江村",315,"伊江村",null,"20 機械器具設置",20,"機械器具設置",null,"062 建築設備士　※電気のその他に記入してください。",62,"建築設備士　※電気のその他に記入してください。"]
[null,null,null,null,"21 岐阜県",21,"岐阜県",null,"324 読谷村",324,"読谷村",null,"21 熱絶縁",21,"熱絶縁",null,"155 第１種電気工事士",155,"第１種電気工事士","電気工事士法"]
[null,null,null,null,"22 静岡県",22,"静岡県",null,"325 嘉手納町",325,"嘉手納町",null,"22 通信",22,"通信",null,"256 第２種電気工事士",256,"第２種電気工事士"]
[null,null,null,null,"23 愛知県",23,"愛知県",null,"326 北谷町",326,"北谷町",null,"23 造園",23,"造園",null,"258 電気主任技術者（第1種～第3種）",258,"電気主任技術者（第1種～第3種）","電気事業法"]
[null,null,null,null,"24 三重県",24,"三重県",null,"327 北中城村",327,"北中城村",null,"24 さく井",24,"さく井",null,"265 給水装置工事主任技術者",265,"給水装置工事主任技術者","水道法"]
[null,null,null,null,"25 滋賀県",25,"滋賀県",null,"328 中城村",328,"中城村",null,"25 建具",25,"建具",null,"168 甲種消防設備士",168,"甲種消防設備士","消防法"]
[null,null,null,null,"26 京都府",26,"京都府",null,"329 西原町",329,"西原町",null,"27 消防施設",27,"消防施設",null,"169 乙種消防設備士",169,"乙種消防設備士"]
[null,null,null,null,"27 大阪府",27,"大阪府",null,"348 与那原町",348,"与那原町",null,"28 清掃施設",28,"清掃施設",null,"181 　１級鉄工技能士（構造物鉄鋼作業）",181,"　１級鉄工技能士（構造物鉄鋼作業）","職業能力開発促進法"]
[null,null,null,null,"28 兵庫県",28,"兵庫県",null,"350 南風原町",350,"南風原町",null,"29 解体",29,"解体",null,"281 　２級鉄工技能士（構造物鉄鋼作業）",281,"　２級鉄工技能士（構造物鉄鋼作業）"]
[null,null,null,null,"29 奈良県",29,"奈良県",null,"353 渡嘉敷村",353,"渡嘉敷村",null,null,null,null,null,"188 　１級塗装技能士(木工塗装作業)",188,"　１級塗装技能士(木工塗装作業)"]
[null,null,null,null,"30 和歌山県",30,"和歌山県",null,"354 座間味村",354,"座間味村",null,null,null,null,null,"288 　２級塗装技能士(木工塗装作業)",288,"　２級塗装技能士(木工塗装作業)"]
[null,null,null,null,"31 鳥取県",31,"鳥取県",null,"355 粟国村",355,"粟国村",null,null,null,null,null,"189 　１級塗装技能士(建築塗装作業)",189,"　１級塗装技能士(建築塗装作業)"]
[null,null,null,null,"32 島根県",32,"島根県",null,"356 渡名喜村",356,"渡名喜村",null,null,null,null,null,"289 　２級塗装技能士(建築塗装作業)",289,"　２級塗装技能士(建築塗装作業)"]
[null,null,null,null,"33 岡山県",33,"岡山県",null,"357 南大東村",357,"南大東村",null,null,null,null,null,"190 　１級塗装技能士(金属塗装作業)",190,"　１級塗装技能士(金属塗装作業)"]
[null,null,null,null,"34 広島県",34,"広島県",null,"358 北大東村",358,"北大東村",null,null,null,null,null,"290 　２級塗装技能士(金属塗装作業)",290,"　２級塗装技能士(金属塗装作業)"]
[null,null,null,null,"35 山口県",35,"山口県",null,"359 伊平屋村",359,"伊平屋村",null,null,null,null,null,"191 　１級塗装技能士(鋼橋塗装作業)",191,"　１級塗装技能士(鋼橋塗装作業)"]
[null,null,null,null,"36 徳島県",36,"徳島県",null,"360 伊是名村",360,"伊是名村",null,null,null,null,null,"291 　２級塗装技能士(鋼橋塗装作業)",291,"　２級塗装技能士(鋼橋塗装作業)"]
[null,null,null,null,"37 香川県",37,"香川県",null,"361 久米島町",361,"久米島町",null,null,null,null,null,"192 　１級塗装技能士(噴霧塗装作業)",192,"　１級塗装技能士(噴霧塗装作業)"]
[null,null,null,null,"38 愛媛県",38,"愛媛県",null,"362 八重瀬町",362,"八重瀬町",null,null,null,null,null,"292 　２級塗装技能士(噴霧塗装作業)",292,"　２級塗装技能士(噴霧塗装作業)"]
[null,null,null,null,"39 高知県",39,"高知県",null,"375 多良間村",375,"多良間村",null,null,null,null,null,"193 　一級畳製作技能士・一級畳技能士",193,"　一級畳製作技能士・一級畳技能士"]
[null,null,null,null,"40 福岡県",40,"福岡県",null,"381 竹富町",381,"竹富町",null,null,null,null,null,"293 　二級畳製作技能士・二級畳技能士",293,"　二級畳製作技能士・二級畳技能士"]
[null,null,null,null,"41 佐賀県",41,"佐賀県",null,"382 与那国町",382,"与那国町",null,null,null,null,null,"197 　１級防水施工技能士",197,"　１級防水施工技能士"]
[null,null,null,null,"42 長崎県",42,"長崎県",null,null,null,null,null,null,null,null,null,"297 　２級防水施工技能士",297,"　２級防水施工技能士"]
[null,null,null,null,"43 熊本県",43,"熊本県",null,null,null,null,null,null,null,null,null,"167 　路面標示施工技能士",167,"　路面標示施工技能士"]
[null,null,null,null,"44 大分県",44,"大分県",null,null,null,null,null,null,null,null,null,"107 　測量士",107,"　測量士","測量法"]
[null,null,null,null,"45 宮崎県",45,"宮崎県",null,null,null,null,null,null,null,null,null,"208 　測量士補",208,"　測量士補"]
[null,null,null,null,"46 鹿児島県",46,"鹿児島県",null,null,null,null,null,null,null,null,null,"701 　技術士：機械部門",701,"　技術士：機械部門","技術士法"]
[null,null,null,null,"47 沖縄県",47,"沖縄県",null,null,null,null,null,null,null,null,null,"702 　技術士：船舶・海洋部門",702,"　技術士：船舶・海洋部門"]
[null,null,null,null,null,null,null,null,null,null,null,null,null,null,null,null,"703 　技術士：航空・宇宙部門",703,"　技術士：航空・宇宙部門"]
[null,null,null,null,null,null,null,null,null,null,null,null,null,null,null,null,"704 　技術士：電気電子部門",704,"　技術士：電気電子部門"]
[null,null,null,null,null,null,null,null,null,null,null,null,null,null,null,null,"705 　技術士：化学部門",705,"　技術士：化学部門"]
[null,null,null,null,null,null,null,null,null,null,null,null,null,null,null,null,"706 　技術士：繊維部門",706,"　技術士：繊維部門"]
[null,null,null,null,null,null,null,null,null,null,null,null,null,null,null,null,"707 　技術士：金属部門",707,"　技術士：金属部門"]
[null,null,null,null,null,null,null,null,null,null,null,null,null,null,null,null,"708 　技術士：資源工学部門",708,"　技術士：資源工学部門"]
[null,null,null,null,null,null,null,null,null,null,null,null,null,null,null,null,"710 　技術士：上下水道部門",710,"　技術士：上下水道部門"]
[null,null,null,null,null,null,null,null,null,null,null,null,null,null,null,null,"711 　技術士：衛生工学部門",711,"　技術士：衛生工学部門"]
[null,null,null,null,null,null,null,null,null,null,null,null,null,null,null,null,"712 　技術士：農業部門",712,"　技術士：農業部門"]
[null,null,null,null,null,null,null,null,null,null,null,null,null,null,null,null,"713 　技術士：森林部門",713,"　技術士：森林部門"]
[null,null,null,null,null,null,null,null,null,null,null,null,null,null,null,null,"714 　技術士：水産部門",714,"　技術士：水産部門"]
[null,null,null,null,null,null,null,null,null,null,null,null,null,null,null,null,"715 　技術士：経営工学部門",715,"　技術士：経営工学部門"]
[null,null,null,null,null,null,null,null,null,null,null,null,null,null,null,null,"716 　技術士：情報工学部門",716,"　技術士：情報工学部門"]
[null,null,null,null,null,null,null,null,null,null,null,null,null,null,null,null,"717 　技術士：応用理学部門",717,"　技術士：応用理学部門"]
[null,null,null,null,null,null,null,null,null,null,null,null,null,null,null,null,"718 　技術士：生物工学部門",718,"　技術士：生物工学部門"]
[null,null,null,null,null,null,null,null,null,null,null,null,null,null,null,null,"719 　技術士：環境部門",719,"　技術士：環境部門"]
[null,null,null,null,null,null,null,null,null,null,null,null,null,null,null,null,"720 　技術士：原子力・放射線部門",720,"　技術士：原子力・放射線部門"]
[null,null,null,null,null,null,null,null,null,null,null,null,null,null,null,null,"721 　技術士：総合技術監理部門",721,"　技術士：総合技術監理部門"]
[null,null,null,null,null,null,null,null,null,null,null,null,null,null,null,null,{"$f":"TEXT(R67,\"000 \") & S67","v":"722 　技術士：建設部門（土質及び基礎）"},722,"　技術士：建設部門（土質及び基礎）"]
[null,null,null,null,null,null,null,null,null,null,null,null,null,null,null,null,"723 　技術士：建設部門（鋼構造及びコンクリート）",723,"　技術士：建設部門（鋼構造及びコンクリート）"]
[null,null,null,null,null,null,null,null,null,null,null,null,null,null,null,null,"724 　技術士：建設部門（都市及び地方計画）",724,"　技術士：建設部門（都市及び地方計画）"]
[null,null,null,null,null,null,null,null,null,null,null,null,null,null,null,null,"725 　技術士：建設部門（河川、砂防及び海岸・海洋）",725,"　技術士：建設部門（河川、砂防及び海岸・海洋）"]
[null,null,null,null,null,null,null,null,null,null,null,null,null,null,null,null,"726 　技術士：建設部門（港湾及び空港）",726,"　技術士：建設部門（港湾及び空港）"]
[null,null,null,null,null,null,null,null,null,null,null,null,null,null,null,null,"727 　技術士：建設部門（電力土木）",727,"　技術士：建設部門（電力土木）"]
[null,null,null,null,null,null,null,null,null,null,null,null,null,null,null,null,"728 　技術士：建設部門（道路）",728,"　技術士：建設部門（道路）"]
[null,null,null,null,null,null,null,null,null,null,null,null,null,null,null,null,"729 　技術士：建設部門（鉄道）",729,"　技術士：建設部門（鉄道）"]
[null,null,null,null,null,null,null,null,null,null,null,null,null,null,null,null,"730 　技術士：建設部門（トンネル）",730,"　技術士：建設部門（トンネル）"]
[null,null,null,null,null,null,null,null,null,null,null,null,null,null,null,null,"731 　技術士：建設部門（施工計画、施工設備及び積算）",731,"　技術士：建設部門（施工計画、施工設備及び積算）"]
[null,null,null,null,null,null,null,null,null,null,null,null,null,null,null,null,"732 　技術士：建設部門（建設環境）",732,"　技術士：建設部門（建設環境）"]
[null,null,null,null,null,null,null,null,null,null,null,null,null,null,null,null,"061 地すべり防止工事士",61,"地すべり防止工事士","その他"]
[null,null,null,null,null,null,null,null,null,null,null,null,null,null,null,null,"063 １級計装士　※電気のその他に記入してください。",63,"１級計装士　※電気のその他に記入してください。"]
[null,null,null,null,null,null,null,null,null,null,null,null,null,null,null,null,"076 建築積算士（建築積算資格者）",76,"建築積算士（建築積算資格者）"]
[null,null,null,null,null,null,null,null,null,null,null,null,null,null,null,null,"109 １級舗装施工管理技術者",109,"１級舗装施工管理技術者"]
[null,null,null,null,null,null,null,null,null,null,null,null,null,null,null,null,"210 ２級舗装施工管理技術者",210,"２級舗装施工管理技術者"]

{"sheet":"マクロ有効化案内","index":9,"n_rows":9,"n_cols":2,"rows_kept":9,"cut":false,"hidden":false,"merged":[]}
[]
[null,"【注意事項】"]
[]
[null,"Excelのマクロを利用して申請書等を作成する仕組みになっています。"]
[]
[null,"※マクロを有効にしないと正しく入力できません。"]
[null,"　必ず入力前にマクロを有効にしてください。"]
[]
[null,"【Excel2010の場合】"]

{"sheet":"資格者集計ワーク","index":10,"n_rows":0,"n_cols":0,"rows_kept":0,"cut":false,"hidden":true,"merged":[]}